bitfinex/quotes_ETHUSD_20250322
["timestamp","ask_amount","ask_price","bid_price","bid_amount"]
[1742638976419,5.78732,1998.9,1998.6,3.03088304]
[1742638976624,5.00279,1998.9,1998.7,0.8219]
[1742638976818,5.00279,1998.9,1998.8,4.704]
[1742638977115,5.00279,1998.9,1998.8,5.02012382]
[1742638980834,5.00279,1998.9,1998.8,5.84202382]
[1742638981243,10.0054,1999.0,1998.8,5.84202382]
[1742638981434,5.00266,1999.0,1998.8,5.84202382]
[1742638981642,5.00275,1998.9,1998.8,5.84202382]
[1742638984864,5.00226,1999.1,1998.8,11.4290962]
[1742638985168,5.00226,1999.1,1998.9,0.8219]
[1742638985372,5.00226,1999.1,1999.0,0.3155356]
[1742638988153,5.0027,1999.0,1998.8,4.704]
[1742638988361,10.00542,1999.0,1998.9,0.31591853]
[1742638989266,5.0027,1999.0,1998.9,0.31591853]
[1742638993840,5.7872,1999.0,1998.9,0.31591853]
[1742638994039,5.00275,1998.9,1998.8,4.703]
[1742638994241,5.00321,1998.8,1998.6,29.16299318]
[1742638994565,5.00321,1998.8,1998.7,4.703]
[1742638994770,10.0064,1998.8,1998.6,29.16299318]
[1742638994970,10.0064,1998.8,1998.7,4.703]
[1742638995465,5.00319,1998.8,1998.7,4.703]
[1742638997543,5.00319,1998.8,1998.7,5.01918103]
[1742638998483,5.00276,1998.9,1998.7,5.01918103]
[1742638998641,5.003,1998.8,1998.7,5.01918103]
[1742638999578,5.00282,1998.9,1998.7,5.01918103]
[1742639000573,5.00252,1999.0,1998.7,5.01918103]
[1742639000875,5.00225,1999.1,1998.7,5.84668103]
[1742639001053,5.00258,1999.0,1998.7,5.84668103]
[1742639002379,5.00258,1999.0,1998.7,10.84988103]
[1742639003786,5.00258,1999.0,1998.7,5.84668103]
[1742639004679,10.00528,1999.0,1998.7,5.84668103]
[1742639004878,5.00295,1998.9,1998.7,5.84668103]
[1742639005181,5.00295,1998.9,1998.7,0.31618103]
[1742639005182,5.003,1998.8,1998.7,0.31618103]
[1742639005340,5.003,1998.8,1998.7,4.702]
[1742639005541,5.003,1998.8,1998.7,5.01818099]
[1742639013305,5.00295,1998.9,1998.7,5.01818099]
[1742639013983,10.00589,1998.9,1998.7,5.01818099]
[1742639016587,5.003,1998.8,1998.7,5.01818099]
[1742639019305,6.085354,1998.8,1998.7,5.01818099]
[1742639020372,5.003,1998.8,1998.7,5.01818099]
[1742639022017,5.003,1998.8,1998.7,0.31618099]
[1742639022226,5.003,1998.8,1998.7,4.702]
[1742639022391,5.003,1998.8,1998.7,5.01832907]
[1742639022590,9.6261196,1998.8,1998.7,0.31632907]
[1742639022791,5.00325,1998.7,1998.6,2.71399318]
[1742639023105,5.00325,1998.7,1998.6,3.03070529]
[1742639025090,5.00308,1998.8,1998.6,3.03070529]
[1742639025824,5.00325,1998.7,1998.6,3.03070529]
[1742639031330,5.00308,1998.8,1998.6,3.03070529]
[1742639031642,11.005808,1999.0,1998.6,11.10654155]
[1742639031951,5.00276,1998.9,1998.6,11.10654155]
[1742639032260,5.00276,1998.9,1998.7,2.28764626]
[1742639032756,5.00276,1998.9,1998.8,0.31622748]
[1742639033757,5.00276,1998.9,1998.6,5.78653944]
[1742639033930,5.00276,1998.9,1998.8,0.31622748]
[1742639034126,5.00276,1998.9,1998.7,2.60425674]
[1742639034460,5.00276,1998.9,1998.8,0.31622748]
[1742639034821,5.00276,1998.9,1998.6,5.78653944]
[1742639035155,5.00276,1998.9,1998.7,2.60425674]
[1742639037154,5.00276,1998.9,1998.7,0.31661048]
[1742639037468,5.00276,1998.9,1998.7,2.28764626]
[1742639037616,5.00276,1998.9,1998.8,0.28941913]
[1742639043067,6.834986,1998.9,1998.8,0.28941913]
[1742639043266,6.834986,1998.9,1998.8,4.99041913]
[1742639043420,5.83446,1998.9,1998.8,4.99041913]
[1742639046965,5.00276,1998.9,1998.8,4.99041913]
[1742639049478,5.00174,1999.4,1998.9,5.75946]
[1742639049628,10.0034,1999.4,1999.0,2.28764626]
[1742639049830,11.08523,1999.4,1999.1,0.28790013]
[1742639050030,5.00166,1999.4,1999.2,4.7]
[1742639050260,5.00166,1999.4,1999.3,0.28722331]
[1742639054964,5.00138,1999.5,1999.3,0.28722331]
[1742639056366,5.001,1999.6,1999.3,0.28722331]
[1742639056668,5.00076,1999.7,1999.4,5.75807]
[1742639056828,5.00076,1999.7,1999.4,0.7568]
[1742639057027,5.00076,1999.7,1999.5,0.28579159]
[1742639057236,5.00076,1999.7,1999.6,4.7]
[1742639057432,5.00076,1999.7,1999.6,4.9854089]
[1742639057638,5.00074,1999.8,1999.6,4.9854089]
[1742639057937,10.00143,1999.8,1999.6,4.9854089]
[1742639058598,5.00075,1999.7,1999.6,4.9854089]
[1742639061478,5.00069,1999.8,1999.6,4.9854089]
[1742639061678,5.00075,1999.7,1999.6,4.9854089]
[1742639061991,5.00069,1999.8,1999.6,5.48394979]
[1742639062198,8.81474,2000.1,1999.7,5.75748]
[1742639062399,5.0005,1999.8,1999.7,0.7568]
[1742639062601,5.0005,1999.8,1999.6,5.19854089]
[1742639063107,5.0005,1999.8,1999.6,4.7]
[1742639063404,5.00075,1999.7,1999.6,4.7]
[1742639066013,5.00075,1999.7,1999.6,4.98409149]
[1742639078022,7.28656671,1999.7,1999.6,4.98409149]
[1742639078528,8.04246671,1999.7,1999.6,0.28409149]
[1742639078834,5.7574,1999.4,1999.3,26.438]
[1742639078996,8.04321671,1999.4,1999.3,26.438]
[1742639081131,9.56911092,1999.4,1999.3,26.438]
[1742639081928,5.7579,1999.2,1999.1,4.698]
[1742639082498,5.7579,1999.2,1999.1,4.98379821]
[1742639083529,5.002,1999.2,1999.1,4.98379821]
[1742639087363,10.00374,1999.3,1999.1,4.98379821]
[1742639087569,5.00183,1999.3,1999.1,4.98379821]
[1742639088865,10.00378,1999.3,1999.1,4.98379821]
[1742639089464,5.002,1999.2,1999.1,4.98379821]
[1742639094157,10.62479392,1999.2,1999.1,0.28579821]
[1742639107199,9.10019242,1999.2,1999.1,0.28579821]
[1742639117271,8.28949242,1999.2,1999.1,0.28579821]
[1742639130931,9.09479242,1999.2,1999.1,0.28579821]
[1742639131072,5.00275,1998.9,1998.8,4.698]
[1742639134607,5.00275,1998.9,1998.8,4.98644182]
[1742639146232,5.0019,1999.3,1998.9,5.76854]
[1742639146425,5.0019,1999.3,1999.0,0.7659]
[1742639146729,5.00212,1999.2,1999.0,1.05394611]
[1742639147946,5.00225,1999.1,1999.0,1.05394611]
[1742639154935,5.00225,1999.1,1999.0,0.28804611]
[1742639163915,5.00225,1999.1,1999.0,4.98404611]
[1742639164812,7.28935942,1999.1,1999.0,4.98404611]
[1742639165198,5.00225,1999.1,1999.0,4.98404611]
[1742639181828,9.83340633,1999.1,1999.0,4.98404611]
[1742639182169,7.54629691,1999.1,1999.0,4.98404611]
[1742639183462,9.83340633,1999.1,1999.0,4.98404611]
[1742639185865,7.54629691,1999.1,1999.0,4.98404611]
[1742639186040,9.83340633,1999.1,1999.0,4.98404611]
[1742639196774,15.00939599,1999.1,1999.0,0.28804611]
[1742639197148,5.003,1998.8,1998.7,4.695]
[1742639199930,5.003,1998.8,1998.7,8.16342932]
[1742639200132,5.00284,1998.9,1998.8,0.8274]
[1742639200676,5.00284,1998.9,1998.8,1.11658214]
[1742639210121,5.00284,1998.9,1998.8,0.28918214]
[1742639210673,7.28994942,1998.9,1998.8,0.28918214]
[1742639212191,5.00284,1998.9,1998.8,0.28918214]
[1742639213562,7.28994942,1998.9,1998.8,0.28918214]
[1742639217325,9.31729536,1998.9,1998.8,0.28918214]
[1742639220228,14.49328502,1998.9,1998.8,0.28918214]
[1742639228533,13.69518502,1998.9,1998.8,0.28918214]
[1742639228738,12.46593908,1998.9,1998.8,0.28918214]
[1742639239037,10.17882966,1998.9,1998.8,0.28918214]
[1742639239242,12.46593908,1998.9,1998.8,0.28918214]
[1742639242556,13.28983908,1998.9,1998.8,0.28918214]
[1742639243049,5.83345,1998.7,1998.6,2.71399318]
[1742639243362,9.50421342,1998.7,1998.6,2.71399318]
[1742639245644,14.68020308,1998.7,1998.6,2.71399318]
[1742639245814,19.9673125,1998.7,1998.6,2.71399318]
[1742639246425,19.93346135,1998.7,1998.6,3.00460793]
[1742639246853,19.93346135,1998.7,1998.6,0.26639751]
[1742639247154,5.0045,1998.2,1998.1,4.693]
[1742639247331,7.29160942,1998.2,1998.1,4.693]
[1742639250018,5.005,1998.0,1997.9,26.45]
[1742639250224,5.005,1998.0,1997.9,31.41259846]
[1742639250425,5.005,1998.0,1997.9,26.71959846]
[1742639250426,7.29210942,1998.0,1997.9,26.71959846]
[1742639250648,7.29210942,1998.0,1997.9,0.26959846]
[1742639250829,8.60482436,1998.0,1997.9,0.26959846]
[1742639251214,5.0055,1997.8,1997.7,4.693]
[1742639251457,5.0055,1997.8,1997.7,4.96340966]
[1742639259168,5.0055,1997.8,1997.7,0.27040966]
[1742639259475,5.0055,1997.8,1997.7,4.96440966]
[1742639262157,7.29260942,1997.8,1997.7,0.27040966]
[1742639262550,8.59868236,1997.8,1997.7,0.27040966]
[1742639264968,9.36148236,1997.8,1997.7,0.27040966]
[1742639265287,14.53747202,1997.8,1997.7,0.27040966]
[1742639265487,5.006,1997.6,1997.5,31.147]
[1742639265682,7.29310942,1997.6,1997.5,31.147]
[1742639266184,5.006,1997.6,1997.5,31.147]
[1742639269092,5.006,1997.6,1997.5,31.39873979]
[1742639269293,7.29310942,1997.6,1997.5,31.39873979]
[1742639269490,5.006,1997.6,1997.5,31.39873979]
[1742639274497,5.006,1997.6,1997.5,32.20873979]
[1742639280337,5.006,1997.6,1997.5,31.39873979]
[1742639280820,5.006,1997.6,1997.5,26.70473979]
[1742639281020,6.23589494,1997.6,1997.5,31.39873979]
[1742639281613,8.52300436,1997.6,1997.5,31.39873979]
[1742639282299,8.52300436,1997.6,1997.5,26.70473979]
[1742639282614,9.35230436,1997.6,1997.5,26.70473979]
[1742639284220,9.35230436,1997.6,1997.5,26.70473979]
[1742639285409,14.52829402,1997.6,1997.5,0.25173979]
[1742639285792,5.007,1997.2,1997.1,4.694]
[1742639286310,7.29410942,1997.2,1997.1,0.25407471]
[1742639286617,5.00726,1997.1,1997.0,4.694]
[1742639289311,5.00726,1997.1,1997.0,4.94868084]
[1742639289517,5.00726,1997.1,1997.0,5.74918084]
[1742639291313,5.00726,1997.1,1997.0,4.94868084]
[1742639296331,9.29710936,1997.1,1997.0,4.94968084]
[1742639296535,14.47309902,1997.1,1997.0,0.25468084]
[1742639299430,14.51209902,1997.1,1997.0,0.25468084]
[1742639299617,17.51209902,1997.1,1997.0,0.25468084]
[1742639299825,5.81936,1996.9,1996.8,26.465]
[1742639300131,9.18916542,1996.9,1996.8,26.72144194]
[1742639302936,9.18916542,1996.9,1996.8,0.25644194]
[1742639303135,5.00851,1996.6,1996.5,4.695]
[1742639303633,5.00851,1996.6,1996.5,5.70989336]
[1742639304131,5.00851,1996.6,1996.5,4.95259336]
[1742639304305,5.00851,1996.6,1996.5,5.70989336]
[1742639307250,5.00851,1996.6,1996.5,4.95259336]
[1742639313046,5.17598966,1996.8,1996.5,5.70989336]
[1742639313215,5.00826,1996.7,1996.5,5.70989336]
[1742639314943,5.0079,1996.9,1996.6,4.57844109]
[1742639315138,5.0079,1996.9,1996.7,0.25865101]
[1742639315459,10.18368966,1997.0,1996.8,0.7573]
[1742639315460,10.18367966,1997.0,1996.8,0.7573]
[1742639315644,5.00728,1997.1,1997.0,0.7573]
[1742639316064,5.00728,1997.1,1997.0,1.01457717]
[1742639323977,5.00728,1997.1,1997.0,0.25727717]
[1742639325307,7.29889896,1997.1,1997.0,0.25727717]
[1742639325590,9.10712796,1997.1,1997.0,0.25727717]
[1742639325896,14.28311762,1997.1,1997.0,0.25727717]
[1742639327195,15.81174865,1997.1,1997.0,0.25727717]
[1742639328750,11.18469866,1997.1,1997.0,0.25727717]
[1742639329811,5.00776,1996.9,1996.8,4.694]
[1742639330011,5.00776,1996.9,1996.8,4.95112447]
[1742639339124,5.0076,1997.0,1996.8,4.95112447]
[1742639339422,5.00776,1996.9,1996.8,4.95112447]
[1742639350433,5.17598966,1997.1,1996.8,4.95112447]
[1742639350723,5.17598966,1997.1,1996.8,7.24274617]
[1742639351131,5.17598966,1997.1,1996.8,4.95112447]
[1742639351519,5.00772,1997.0,1996.8,4.95112447]
[1742639351738,10.01545,1997.0,1996.8,4.95112447]
[1742639355658,10.01542,1997.0,1996.8,4.95112447]
[1742639356847,5.00776,1996.9,1996.8,4.95112447]
[1742639367367,6.31346817,1996.9,1996.8,4.95112447]
[1742639367667,5.00776,1996.9,1996.8,4.95112447]
[1742639372269,5.00776,1996.9,1996.8,0.25712447]
[1742639372596,5.80226,1996.7,1996.6,26.475]
[1742639373878,5.00826,1996.7,1996.6,26.475]
[1742639375182,10.18409966,1996.8,1996.6,28.7666217]
[1742639375355,10.18409966,1996.8,1996.6,32.19239387]
[1742639376194,10.18409966,1996.8,1996.7,0.25755275]
[1742639377041,10.18409966,1996.8,1996.6,32.19239387]
[1742639377283,10.18409966,1996.8,1996.7,0.25755275]
[1742639377480,10.18409966,1996.8,1996.6,32.19239387]
[1742639377657,10.18409966,1996.8,1996.7,0.25755275]
[1742639377857,10.18409966,1996.8,1996.6,28.7666217]
[1742639378060,10.18409966,1996.8,1996.7,0.25755275]
[1742639378259,10.18409966,1996.8,1996.6,28.7666217]
[1742639378559,5.00811,1996.8,1996.7,0.25755275]
[1742639378765,5.00811,1996.8,1996.6,28.7666217]
[1742639378945,5.00811,1996.8,1996.7,0.25755275]
[1742639379144,5.00811,1996.8,1996.6,28.7666217]
[1742639379373,10.0163,1996.8,1996.7,0.25755275]
[1742639379573,10.0163,1996.8,1996.6,26.475]
[1742639379887,10.0163,1996.8,1996.7,0.25727083]
[1742639380190,10.0163,1996.8,1996.6,26.475]
[1742639380349,10.0163,1996.8,1996.7,0.25727083]
[1742639380549,10.0163,1996.8,1996.6,26.475]
[1742639380773,5.00811,1996.8,1996.7,0.25727083]
[1742639381079,5.00826,1996.7,1996.6,31.168]
[1742639381387,5.00826,1996.7,1996.6,31.42566948]
[1742639396702,5.00826,1996.7,1996.6,4.95066948]
[1742639401996,5.00826,1996.7,1996.6,0.25766948]
[1742639402304,5.80606,1996.7,1996.6,0.25766948]
[1742639402620,7.26955373,1996.7,1996.6,0.25766948]
[1742639403671,6.47175373,1996.7,1996.6,0.25766948]
[1742639404923,5.00826,1996.7,1996.6,0.25766948]
[1742639406124,5.00826,1996.7,1996.6,1.06316948]
[1742639406699,5.00826,1996.7,1996.6,0.25766948]
[1742639417806,5.0087,1996.6,1996.4,31.169]
[1742639419395,10.01742,1996.6,1996.4,31.169]
[1742639421444,10.01742,1996.6,1996.5,0.25881013]
[1742639422439,0.7978,1996.8,1996.5,6.45038593]
[1742639422440,5.00837,1996.7,1996.5,6.45038593]
[1742639422641,5.00837,1996.7,1996.5,1.01531013]
[1742639422806,10.01683,1996.7,1996.5,1.01531013]
[1742639423845,5.00851,1996.6,1996.5,0.25881013]
[1742639429627,8.12120479,1996.6,1996.5,0.25881013]
[1742639432053,5.82891,1996.6,1996.5,0.25881013]
[1742639432252,7.14186748,1996.6,1996.5,0.25881013]
[1742639433426,6.32146748,1996.6,1996.5,0.25881013]
[1742639433780,5.00851,1996.6,1996.5,0.25881013]
[1742639435055,5.82891,1996.6,1996.5,0.25881013]
[1742639437368,8.12120479,1996.6,1996.5,0.25881013]
[1742639437575,13.29719445,1996.6,1996.5,0.25881013]
[1742639437871,5.00901,1996.4,1996.3,4.691]
[1742639438877,5.00901,1996.4,1996.3,5.16064166]
[1742639441264,5.00901,1996.4,1996.3,5.42088753]
[1742639444396,5.00901,1996.4,1996.3,0.72988753]
[1742639444596,6.010796,1996.4,1996.3,0.72988753]
[1742639445296,6.833796,1996.4,1996.3,0.72988753]
[1742639445450,9.12609079,1996.4,1996.3,0.72988753]
[1742639446495,6.833796,1996.4,1996.3,0.72988753]
[1742639446693,5.00901,1996.4,1996.3,0.26024587]
[1742639455212,5.00901,1996.4,1996.3,1.04024587]
[1742639457228,5.00901,1996.4,1996.3,0.26024587]
[1742639462240,5.00901,1996.4,1996.3,1.04024587]
[1742639463626,5.00884,1996.5,1996.3,3.33254066]
[1742639463991,5.00884,1996.5,1996.3,4.64085472]
[1742639465216,5.00884,1996.5,1996.3,4.69094199]
[1742639465625,5.00884,1996.5,1996.3,4.64085472]
[1742639465950,10.18465966,1996.6,1996.3,4.64085472]
[1742639466249,5.0083,1996.7,1996.5,2.29229479]
[1742639466413,5.0083,1996.7,1996.6,4.69]
[1742639466614,5.0083,1996.7,1996.6,4.94903479]
[1742639469436,5.00801,1996.8,1996.6,4.94903479]
[1742639469618,10.01625,1996.8,1996.6,4.94903479]
[1742639469817,5.00801,1996.8,1996.7,0.7841]
[1742639470037,5.00782,1996.9,1996.7,1.04275098]
[1742639471450,5.00801,1996.8,1996.7,1.04275098]
[1742639471743,5.00801,1996.8,1996.7,1.84525556]
[1742639473861,5.00778,1996.9,1996.7,4.13755035]
[1742639474158,5.00778,1996.9,1996.7,1.84525556]
[1742639474322,5.00801,1996.8,1996.7,1.04275098]
[1742639477467,5.00778,1996.9,1996.7,1.04275098]
[1742639478149,5.00766,1997.0,1996.7,3.3851221]
[1742639478324,10.01537,1997.0,1996.7,3.3851221]
[1742639478965,5.00778,1996.9,1996.7,3.3851221]
[1742639479126,5.00778,1996.9,1996.7,28.87718852]
[1742639479340,5.00778,1996.9,1996.7,28.82711219]
[1742639480351,5.00766,1997.0,1996.8,0.7841]
[1742639480678,5.00776,1996.9,1996.8,0.7841]
[1742639483602,5.00766,1997.0,1996.8,0.7841]
[1742639483878,5.00766,1997.0,1996.8,2.17616494]
[1742639484059,10.01537,1997.0,1996.8,2.17616494]
[1742639484262,5.00766,1997.0,1996.9,0.2568149]
[1742639485246,5.00766,1997.0,1996.8,2.17616494]
[1742639485448,5.00766,1997.0,1996.9,0.2568149]
[1742639485648,5.00766,1997.0,1996.8,2.17616494]
[1742639485981,5.00766,1997.0,1996.9,0.2568149]
[1742639486279,10.01536,1997.0,1996.8,2.17616494]
[1742639486495,10.01536,1997.0,1996.9,0.2568149]
[1742639486862,10.01536,1997.0,1996.8,2.17616494]
[1742639487074,5.00776,1996.9,1996.8,0.7841]
[1742639487379,5.00801,1996.8,1996.7,26.476]
[1742639488398,5.00801,1996.8,1996.7,31.164]
[1742639488693,8.09880479,1996.8,1996.7,31.164]
[1742639488854,8.09880479,1996.8,1996.7,26.476]
[1742639489058,9.40946127,1996.8,1996.7,26.476]
[1742639489253,11.70175606,1996.8,1996.7,26.476]
[1742639489483,5.00962,1996.2,1996.1,26.474]
[1742639489692,5.00962,1996.2,1996.1,31.162]
[1742639490602,5.00934,1996.3,1996.1,31.162]
[1742639490788,5.00934,1996.3,1996.2,3.1162]
[1742639491087,5.00895,1996.5,1996.2,3.8941]
[1742639491296,10.01792,1996.5,1996.2,3.8941]
[1742639491500,5.00904,1996.4,1996.2,3.8941]
[1742639494296,5.00944,1996.3,1996.1,31.162]
[1742639495001,5.00944,1996.3,1996.1,33.45429479]
[1742639498502,0.7985,1996.6,1996.2,3.08039479]
[1742639498703,5.00814,1996.8,1996.5,3.08039479]
[1742639498909,5.00814,1996.8,1996.6,4.688]
[1742639499403,5.00826,1996.7,1996.6,4.688]
[1742639502607,5.00814,1996.8,1996.6,7.88341]
[1742639504506,10.18359966,1997.0,1996.7,2.29229479]
[1742639504712,5.00761,1997.0,1996.7,0.7881]
[1742639504887,5.00761,1997.0,1996.8,2.29229479]
[1742639505088,5.00761,1997.0,1996.7,3.08039479]
[1742639505290,5.00761,1997.0,1996.8,0.30803948]
[1742639506711,10.01535,1997.0,1996.7,0.7881]
[1742639506912,5.00805,1996.8,1996.6,7.88341]
[1742639508712,5.00805,1996.8,1996.7,26.476]
[1742639510378,5.00805,1996.8,1996.7,31.164]
[1742639510788,5.78395,1996.8,1996.7,31.164]
[1742639513522,5.78395,1996.8,1996.7,4.688]
[1742639514523,0.7529,1997.2,1996.7,4.687]
[1742639514821,5.00785,1996.9,1996.7,4.687]
[1742639516942,5.00731,1997.1,1996.7,4.687]
[1742639517529,5.00759,1997.0,1996.7,9.69524]
[1742639517826,5.00759,1997.0,1996.8,0.969524]
[1742639518211,5.00731,1997.1,1996.8,6.02759832]
[1742639518414,5.00729,1997.1,1996.9,0.7785]
[1742639519123,5.00765,1997.0,1996.8,1.9879761]
[1742639520643,5.0079,1996.9,1996.7,5.06041822]
[1742639521132,10.01588,1996.9,1996.7,4.687]
[1742639521325,5.00802,1996.8,1996.6,0.98755647]
[1742639521489,5.00814,1996.8,1996.7,4.687]
[1742639522729,5.00784,1996.9,1996.7,4.687]
[1742639523158,10.0158,1996.9,1996.7,4.687]
[1742639524439,5.00758,1997.0,1996.7,5.25445565]
[1742639524647,5.00758,1997.0,1996.8,0.7785]
[1742639525937,5.00728,1997.1,1996.8,0.7785]
[1742639526246,5.00706,1997.2,1996.9,5.00774]
[1742639526449,5.00706,1997.2,1996.8,5.7864]
[1742639526742,5.00706,1997.2,1996.8,7.77330764]
[1742639527944,5.00706,1997.2,1996.9,26.473]
[1742639528238,5.00678,1997.3,1996.9,31.48074]
[1742639529416,5.00701,1997.2,1996.9,26.473]
[1742639530446,0.7905,1997.2,1996.9,26.473]
[1742639530748,5.00704,1997.2,1997.0,1.7616064]
[1742639531053,5.00704,1997.2,1997.1,4.687]
[1742639533807,5.00677,1997.3,1997.1,5.4663]
[1742639534146,10.01328,1997.4,1997.1,5.516366]
[1742639534506,5.00677,1997.3,1997.1,5.516366]
[1742639534754,5.00677,1997.3,1997.1,6.5687346]
[1742639535849,5.00677,1997.3,1997.1,6.5186686]
[1742639536353,5.00657,1997.4,1997.1,6.56873509]
[1742639536553,5.00657,1997.4,1997.1,6.89343732]
[1742639537612,5.00676,1997.3,1997.1,6.89343732]
[1742639540268,5.007,1997.2,1997.1,4.687]
[1742639540639,5.00738,1997.1,1996.9,28.27554974]
[1742639540823,5.00738,1997.1,1997.0,4.686]
[1742639541322,5.00751,1997.0,1996.9,27.49624974]
[1742639541527,5.00751,1997.0,1996.9,32.18224974]
[1742639541968,5.00733,1997.1,1996.9,35.40047471]
[1742639544366,5.00751,1997.0,1996.9,35.40047471]
[1742639544566,5.82861,1997.0,1996.9,31.159]
[1742639545771,0.8211,1997.4,1996.9,31.9106]
[1742639546143,5.00751,1997.0,1996.9,31.159]
[1742639546660,5.00751,1997.0,1996.9,26.473]
[1742639546825,5.00751,1997.0,1996.9,31.159]
[1742639547657,5.00751,1997.0,1996.9,31.37356826]
[1742639548765,5.00751,1997.0,1996.9,26.68756826]
[1742639549069,6.47311608,1997.0,1996.9,31.37356826]
[1742639549264,7.29421608,1997.0,1996.9,31.37356826]
[1742639549474,7.29421608,1997.0,1996.9,26.68756826]
[1742639555440,12.47020574,1997.0,1996.9,26.68756826]
[1742639555640,12.47020574,1997.0,1996.9,26.473]
[1742639555967,12.47020574,1997.0,1996.9,26.68819137]
[1742639557677,12.47020574,1997.0,1996.9,0.21519137]
[1742639558044,5.00826,1996.7,1996.6,4.686]
[1742639559453,5.00826,1996.7,1996.6,4.90266918]
[1742639560883,5.00826,1996.7,1996.6,0.21666918]
[1742639561341,5.52210571,1996.7,1996.6,0.21666918]
[1742639562467,5.00826,1996.7,1996.6,0.21666918]
[1742639562874,5.0081,1996.8,1996.6,1.04856918]
[1742639563075,10.01634,1996.8,1996.6,1.04856918]
[1742639564284,5.0081,1996.8,1996.6,1.04856918]
[1742639564451,10.01631,1996.8,1996.6,1.62703487]
[1742639565152,5.00826,1996.7,1996.6,1.62703487]
[1742639566353,5.00826,1996.7,1996.6,1.04856918]
[1742639566878,5.00826,1996.7,1996.6,0.21666918]
[1742639567792,5.00826,1996.7,1996.6,4.90266918]
[1742639580724,5.0081,1996.8,1996.6,4.90266918]
[1742639581013,5.00826,1996.7,1996.6,4.90266918]
[1742639581217,5.00826,1996.7,1996.6,8.1237261]
[1742639582413,5.00826,1996.7,1996.6,4.90266918]
[1742639592933,7.30069359,1996.7,1996.6,0.21666918]
[1742639593234,7.30069359,1996.7,1996.6,4.686]
[1742639593431,7.30069359,1996.7,1996.6,4.88527837]
[1742639593726,5.00826,1996.7,1996.6,4.88527837]
[1742639594104,7.30069359,1996.7,1996.6,4.88527837]
[1742639594310,5.00826,1996.7,1996.6,4.88527837]
[1742639595753,10.18424966,1996.7,1996.6,4.88527837]
[1742639601725,5.00826,1996.7,1996.6,4.88527837]
[1742639605644,5.17598966,1996.9,1996.6,5.45281621]
[1742639605944,10.01637,1996.8,1996.6,5.45281621]
[1742639606318,5.00826,1996.7,1996.6,5.45281621]
[1742639608318,5.00826,1996.7,1996.6,4.88527837]
[1742639610253,5.00826,1996.7,1996.6,31.36227837]
[1742639621560,5.00779,1996.9,1996.6,31.36227837]
[1742639621734,5.00826,1996.7,1996.6,31.36227837]
[1742639628045,5.00826,1996.7,1996.6,32.13937837]
[1742639628237,5.00826,1996.7,1996.6,35.58255957]
[1742639629783,5.00826,1996.7,1996.6,31.36227837]
[1742639633843,13.30173325,1997.1,1996.6,31.36227837]
[1742639633844,11.00915966,1997.1,1996.6,33.65471196]
[1742639634179,11.00915966,1997.1,1996.6,39.49547196]
[1742639634180,5.00776,1996.9,1996.6,39.49547196]
[1742639634379,5.00755,1997.0,1996.6,39.49547196]
[1742639635074,5.00727,1997.1,1996.7,2.34250943]
[1742639635380,5.00703,1997.2,1996.8,3.30704599]
[1742639635572,5.00703,1997.2,1996.9,0.05007233]
[1742639635875,5.00734,1997.1,1997.0,4.86534497]
[1742639636180,5.00681,1997.3,1997.0,8.48182029]
[1742639636339,5.17598966,1997.4,1997.1,2.29243359]
[1742639636542,15.18933966,1997.4,1997.2,0.18003502]
[1742639636778,5.00675,1997.3,1997.2,0.18003502]
[1742639637459,5.00675,1997.3,1997.1,0.05006699]
[1742639637782,10.18263966,1997.4,1997.2,0.18003502]
[1742639637783,5.00665,1997.4,1997.2,0.18003502]
[1742639638087,10.01334,1997.4,1997.2,0.18003502]
[1742639638587,5.00665,1997.4,1997.2,0.18003502]
[1742639639187,5.00626,1997.5,1997.2,0.18003502]
[1742639639484,5.83174,1997.7,1997.3,3.12493359]
[1742639639689,5.00612,1997.6,1997.4,31.156]
[1742639639898,5.00612,1997.6,1997.4,31.33500396]
[1742639640055,5.0058,1997.7,1997.4,33.62743755]
[1742639640259,5.0058,1997.7,1997.4,31.33500396]
[1742639640567,5.0058,1997.7,1997.4,35.28489442]
[1742639641197,5.83125,1997.9,1997.5,0.55]
[1742639641388,5.00552,1997.8,1997.6,1.010737]
[1742639641888,10.01074,1997.9,1997.6,1.010737]
[1742639642192,5.0055,1997.8,1997.6,1.010737]
[1742639642492,5.37501,1998.0,1997.6,6.90258406]
[1742639642791,0.37,1998.0,1997.7,2.29243359]
[1742639642973,0.37,1998.0,1997.9,5.00525]
[1742639643174,0.37,1998.0,1997.9,0.8325]
[1742639643379,0.37,1998.0,1997.9,1.00922034]
[1742639643584,5.375,1998.0,1997.9,1.00922034]
[1742639643760,5.375,1998.0,1997.9,0.17672034]
[1742639646792,6.2009,1998.0,1997.9,0.17672034]
[1742639647970,7.70296778,1998.0,1997.9,4.85872034]
[1742639651792,7.70296778,1998.0,1997.9,0.17672034]
[1742639651963,5.0055,1997.8,1997.7,4.681]
[1742639652163,5.0055,1997.8,1997.7,4.84207444]
[1742639659369,5.781,1997.8,1997.7,0.16107444]
[1742639659576,7.24112678,1997.8,1997.7,0.16107444]
[1742639659998,5.006,1997.6,1997.5,4.681]
[1742639660205,5.006,1997.6,1997.5,4.84304547]
[1742639660920,5.00552,1997.8,1997.5,5.66104547]
[1742639661077,5.37509,1998.0,1997.6,5.00597]
[1742639661279,10.3803,1998.0,1997.7,0.500597]
[1742639661480,5.00528,1997.9,1997.7,0.66197767]
[1742639661887,5.00528,1997.9,1997.8,0.818]
[1742639662092,0.37,1998.0,1997.8,0.818]
[1742639662314,0.37,1998.0,1997.9,4.681]
[1742639662503,0.37,1998.0,1997.9,5.74752973]
[1742639662682,0.37,1998.0,1997.9,5.90814366]
[1742639665620,0.37,1998.0,1997.9,6.45814366]
[1742639665780,0.37,1998.0,1997.9,11.46339366]
[1742639665983,0.37,1998.0,1997.9,12.24919366]
[1742639671433,0.37,1998.0,1997.9,5.90814366]
[1742639671736,5.375,1998.0,1997.9,4.84161393]
[1742639672303,0.37,1998.0,1997.9,4.84161393]